fUST/lending_fUST_20260114
["ID","MTS","AMOUNT","RATE_DAILY","PERIOD"]
[401740866,1768355432871,-500.0,0.0001216,2]
[401740868,1768355432880,-500.0,0.0001216,2]
[401740870,1768355432889,-500.0,0.0001216,2]
[401740872,1768355432898,-500.0,0.0001216,2]
[401740874,1768355432907,-500.0,0.0001216,2]
[401740876,1768355432916,-500.0,0.0001216,2]
[401740878,1768355432925,-500.0,0.0001216,2]
[401740880,1768355432934,-500.0,0.0001216,2]
[401740882,1768355432943,-500.0,0.0001216,2]
[401740884,1768355432953,-500.0,0.0001216,2]
[401740886,1768355432962,-500.0,0.0001216,2]
[401740888,1768355432971,-500.0,0.0001216,2]
[401740890,1768355432981,-500.0,0.0001216,2]
[401740892,1768355432990,-193.72383115,0.0001216,2]
[401740894,1768355432999,-500.0,0.0001216,2]
[401740896,1768355433009,-500.0,0.0001216,2]
[401740897,1768355433017,-500.0,0.0001216,2]
[401740899,1768355433026,-264.25721285,0.0001216,2]
[401740901,1768355433036,-500.0,0.0001216,2]
[401740903,1768355433045,-500.0,0.0001216,2]
[401740904,1768355433054,-500.0,0.0001216,2]
[401740906,1768355433065,-631.45480021,0.0001216,2]
[401740908,1768355433074,-500.0,0.0001216,2]
[401740910,1768355433083,-500.0,0.0001216,2]
[401740911,1768355433092,-500.0,0.0001216,2]
[401740913,1768355433101,-500.0,0.0001216,2]
[401740914,1768355433110,-422.35209796,0.0001216,2]
[401740915,1768355433119,-500.0,0.0001216,2]
[401740916,1768355433128,-500.0,0.0001216,2]
[401740917,1768355433137,-500.0,0.0001216,2]
[401740919,1768355433146,-500.0,0.0001216,2]
[401740921,1768355433155,-500.0,0.0001216,2]
[401740922,1768355433165,-500.0,0.0001216,2]
[401740923,1768355433174,-488.29991782,0.0001216,2]
[401740924,1768355433183,-500.0,0.0001216,2]
[401740926,1768355433192,-500.0,0.0001216,2]
[401740928,1768355433200,-500.0,0.0001216,2]
[401740930,1768355433209,-500.0,0.0001216,2]
[401740932,1768355433218,-500.0,0.0001216,2]
[401740938,1768355433362,-500.0,0.0001216,2]
[401740939,1768355433372,-500.0,0.0001216,2]
[401740940,1768355433382,-500.0,0.0001216,2]
[401740941,1768355433392,-500.0,0.0001216,2]
[401740942,1768355433401,-500.0,0.0001216,2]
[401740943,1768355433411,-500.0,0.0001216,2]
[401740944,1768355433421,-500.0,0.0001216,2]
[401740945,1768355433430,-500.0,0.0001216,2]
[401740946,1768355433440,-500.0,0.0001216,2]
[401740947,1768355433449,-500.0,0.0001216,2]
[401740948,1768355433458,-500.0,0.0001216,2]
[401740949,1768355433468,-500.0,0.0001216,2]
[401740950,1768355433479,-500.0,0.0001216,2]
[401740951,1768355433488,-500.0,0.0001216,2]
[401740952,1768355433497,-286.31113916,0.0001216,2]
[401740953,1768355433506,-125601.01871099,0.00012161,2]
[401740954,1768355433518,-1282.66666667,0.00012161,2]
[401740963,1768355438721,-161905.45436389,0.00012161,2]
[401740964,1768355438733,-7097.48841292,0.00012161,2]
[401740965,1768355438774,-575.17639891,0.00012161,2]
[401740966,1768355438787,-381.18565502,0.00012161,2]
[401741087,1768355441971,-3e-08,0.00012161,2]
[401741090,1768355441987,-269.247383,0.00012161,2]
[401741092,1768355441998,-4421.75823662,0.00012161,2]
[401741098,1768355442048,200.0,0.00030137,120]
[401741574,1768355446740,-1241.03635757,0.00012161,2]
[401743687,1768355484722,159.55,7.182e-05,2]
[401743688,1768355485123,186.14,7.459e-05,2]
[401743689,1768355485578,212.73,7.735e-05,2]
[401743690,1768355485966,239.32,8.011e-05,2]
[401743691,1768355486361,265.91,8.287e-05,2]
[401743692,1768355575705,500.0,0.00030136,120]
[401743693,1768355576078,341.95114675,0.00030136,120]
[401743694,1768355610620,961.14762757,9.5e-05,2]
[401743696,1768355646344,-1733.88183993,0.00011,7]
[401743697,1768355649511,-217.49912681,0.00011,7]
[401743698,1768355653664,-155.1417657,0.00011,7]
[401743699,1768355656438,-218.9535019,0.00011,7]
[401743700,1768355659627,-153.95769634,0.00011,7]
[401743701,1768355665228,-319.24742481,0.00011,7]
[401743703,1768355667904,-322.3558322,0.00011,7]
[401743704,1768355669949,-190.4260646,0.00011,7]
[401743705,1768355672667,-280.6802829,0.00011,7]
[401743706,1768355674100,-363.75411148,0.00011,7]
[401743707,1768355678341,-260.98993243,0.00011,7]
[401743708,1768355680324,-231.87954565,0.00011,7]
[401743709,1768355681860,-157.17890079,0.00011,7]
[401743710,1768355684899,-208.23196804,0.00011,7]
[401743711,1768355687711,-222.90332121,0.00011,7]
[401743712,1768355689395,-326.55537654,0.00011,7]
[401743713,1768355696183,-162.31579678,0.00011,7]
[401743714,1768355699484,-197.98311419,0.00011,7]
[401743715,1768355702250,-240.27105052,0.00011,7]
[401743717,1768355704240,-300.0,0.00011,7]
[401743718,1768355707931,-307.26762969,0.00011,7]
[401743719,1768355709523,-284.67294533,0.00011,7]
[401743720,1768355711554,-334.33453554,0.00011,7]
[401743721,1768355713843,-414.62947799,0.00011,7]
[401743722,1768355718214,-176.57844854,0.00011,7]
[401743723,1768355720318,-274.45753793,0.00011,7]
[401743724,1768355722422,-669.03213412,0.00011,7]
[401743726,1768355749050,180.07,6.985e-05,2]
[401743727,1768355749446,225.09,7.276e-05,2]
[401743728,1768355749872,270.11,7.567e-05,2]
[401743729,1768355750284,315.13,7.858e-05,2]
[401743730,1768355750668,360.15,8.149e-05,2]
[401743731,1768355751081,405.16,8.44e-05,2]
[401743732,1768355751419,-91.90961906,0.00011,7]
[401743733,1768355751487,223.82964743,8.731e-05,2]
[401743734,1768355751515,226.35035257,8.731e-05,2]
[401743738,1768355851312,403.49816112,0.00030136,120]
[401743753,1768355959297,500.0,0.00030136,120]
[401743758,1768356073823,-300.0,0.00011155,2]
[401743759,1768356073850,-4507.5288573,0.00011156,2]
[401743760,1768356079683,-384.9522854,0.00011156,2]
[401743761,1768356079713,-500.0,0.00011156,2]
[401743762,1768356079740,-500.0,0.00011156,2]
[401743763,1768356079767,-500.0,0.00011156,2]
[401743764,1768356079792,-500.0,0.00011156,2]
[401743765,1768356079942,-500.0,0.00011156,2]
[401743766,1768356079969,-500.0,0.00011156,2]
[401743767,1768356079996,-500.0,0.00011156,2]
[401743768,1768356080023,-500.0,0.00011156,2]
[401743769,1768356080049,-500.0,0.00011156,2]
[401743770,1768356085133,157.24,7.137e-05,2]
[401743771,1768356085688,-500.0,0.00011156,2]
[401743772,1768356085714,-500.0,0.00011156,2]
[401743773,1768356085739,-500.0,0.00011156,2]
[401743774,1768356085765,-500.0,0.00011156,2]
[401743775,1768356085791,-500.0,0.00011156,2]
[401743776,1768356085818,-577.0,0.00011156,2]
[401743777,1768356085847,-460.79598516,0.00011201,2]
[401743778,1768356085874,-786.97796458,0.00011246,2]
[401743779,1768356086057,183.45,7.412e-05,2]
[401743780,1768356086615,209.66,7.686e-05,2]
[401743781,1768356087031,235.86,7.961e-05,2]
[401743782,1768356087464,262.07,8.235e-05,2]
[401743789,1768356173677,152.48173625,0.00030137,120]
[401743794,1768356336418,-166.19165126,0.00010761,2]
[401743797,1768356348009,-46.92102404,0.00010761,2]
[401743798,1768356348036,-1350.46210052,0.00011246,2]
[401743799,1768356348065,-451.58006545,0.00011311,2]
[401743800,1768356348092,-300.0,0.00011377,2]
[401743801,1768356348121,-300.0,0.00011377,2]
[401743802,1768356348150,-1200.0,0.00011377,2]
[401743803,1768356348182,-300.0,0.00011378,2]
[401743804,1768356348211,-300.0,0.00011378,2]
[401743805,1768356348241,-300.0,0.00011378,2]
[401743806,1768356348271,-300.0,0.00011378,2]
[401743807,1768356348300,-2.08361998,0.00011378,2]
[401743808,1768356348508,-297.91638002,0.00011378,2]
[401743809,1768356348538,-300.0,0.00011378,2]
[401743810,1768356348569,-300.0,0.00011378,2]
[401743811,1768356348599,-300.0,0.00011378,2]
[401743812,1768356348629,-300.0,0.00011378,2]
[401743813,1768356348658,-300.0,0.00011378,2]
[401743814,1768356348686,-300.0,0.00011378,2]
[401743815,1768356348715,-300.0,0.00011378,2]
[401743816,1768356348743,-300.0,0.00011378,2]
[401743817,1768356348772,-300.0,0.00011378,2]
[401743818,1768356348801,-300.0,0.00011378,2]
[401743819,1768356348829,-600.0,0.00011378,2]
[401743820,1768356349048,-3029.55559719,0.00011974,2]
[401743821,1768356349084,-4786.51049614,0.00011974,2]
[401743822,1768356349602,-426.98900772,0.00011974,2]
[401743823,1768356349612,-1059.01355652,0.0001202,3]
[401743824,1768356349621,-2533.62070406,0.00012052,2]
[401743825,1768356350633,-10000.01,0.00012052,2]
[401743826,1768356350801,-10000.01,0.00012052,2]
[401743827,1768356350947,-10000.01,0.00012052,2]
[401743828,1768356353893,-10000.01,0.00012052,2]
[401743829,1768356354028,-10000.01,0.00012052,2]
[401743830,1768356354165,-10000.01,0.00012052,2]
[401743831,1768356356727,-10000.01,0.00012052,2]
[401743832,1768356356846,-10000.01,0.00012052,2]
[401743833,1768356356960,-10000.01,0.00012052,2]
[401743834,1768356359761,-10000.01,0.00012052,2]
[401743835,1768356359879,-10000.01,0.00012052,2]
[401743836,1768356360020,-10000.01,0.00012052,2]
[401743837,1768356384344,-300.0,0.00012051,2]
[401743838,1768356384388,-9400.01,0.00012052,2]
[401743839,1768356388070,-3768.00429569,0.0001177,2]
[401743840,1768356388094,-2464.00140862,0.0001177,2]
[401743841,1768356393483,-500.0,0.00011984,2]
[401743842,1768356393514,-500.0,0.00011984,2]
[401743843,1768356393544,-500.0,0.00011984,2]
[401743844,1768356393576,-443.0,0.00011984,2]
[401743845,1768356393614,-500.0,0.00011984,2]
[401743846,1768356393644,-249.01963645,0.00011984,2]
[401743847,1768356393742,-4615.9707271,0.00012052,2]
[401743849,1768356458468,2484.4524257,0.00011152,2]
[401743850,1768356480590,416.7,9.491e-05,2]
[401743851,1768356480863,416.7,9.491e-05,2]
[401743852,1768356498409,199.810284,0.00010959,2]
[401743860,1768356616227,-610.61473748,0.00011843,2]
[401743861,1768356616255,-587.0,0.00011843,2]
[401743862,1768356616283,-451.22177328,0.00011865,2]
[401743863,1768356616311,-150.65402664,0.00011887,2]
[401743864,1768356616337,-1961.7452826,0.00012021,2]
[401743865,1768356619336,-4224.9455348,0.00011012,2]
[401743866,1768356619366,-509.9945807,0.00011012,2]
[401743867,1768356622439,-1040.1243497,0.00011012,2]
[401743868,1768356622466,-2477.53836,0.00012021,2]
[401743869,1768356622493,-734.3692746,0.00012045,2]
[401743870,1768356622544,-1495.9460314,0.00012045,2]
[401743902,1768356631662,-708.04675122,0.0001193,2]
[401743903,1768356631673,-91.95324878,0.0001193,2]
[401743904,1768356631683,-153.3286492,0.00012024,2]
[401743906,1768356631692,-1957.856,0.00012045,2]
[401743907,1768356631701,-228.7754492,0.0001205,2]
[401743916,1768356637883,-818.07178309,0.0001205,2]
[401743994,1768356640222,-3e-08,0.0001205,2]
[401743996,1768356640234,-153.15276768,0.0001205,2]
[401743998,1768356640243,-150.43723232,0.0001205,2]
[401744408,1768356644065,-149.56276768,0.0001205,2]
[401744410,1768356644074,-181.27275558,0.00012051,2]
[401744412,1768356644083,-500.0,0.00012051,2]
[401744414,1768356644093,-500.0,0.00012051,2]
[401744416,1768356644102,-324.70578866,0.00012051,2]
[401744418,1768356644111,-302.00924348,0.00012051,2]
[401744420,1768356644120,-500.0,0.00012051,2]
[401744422,1768356644129,-500.0,0.00012051,2]
[401744424,1768356644138,-169.27596462,0.00012051,2]
[401744425,1768356644147,-529.36191254,0.00012051,2]
[401744427,1768356644156,-500.0,0.00012051,2]
[401744429,1768356644165,-500.0,0.00012051,2]
[401744431,1768356644175,-500.0,0.00012051,2]
[401744433,1768356644184,-500.0,0.00012051,2]
[401744435,1768356644193,-500.0,0.00012051,2]
[401744437,1768356644202,-500.0,0.00012051,2]
[401744439,1768356644211,-500.0,0.00012051,2]
[401744441,1768356644220,-500.0,0.00012051,2]
[401744443,1768356644230,-500.0,0.00012051,2]
[401744445,1768356644240,-316.08331196,0.00012051,2]
[401744447,1768356644249,-500.0,0.00012051,2]
[401744449,1768356644260,-500.0,0.00012051,2]
[401744451,1768356644270,-500.0,0.00012051,2]
[401744453,1768356644279,-500.0,0.00012051,2]
[401744455,1768356644288,-500.0,0.00012051,2]
[401744457,1768356644297,-121976.46871081,0.00012052,2]
[401745315,1768356689174,300.21733051,0.00030037,120]
[401745318,1768356796832,3200.0,0.00030137,120]
[401745319,1768356860310,160.704526,0.00011187,120]
[401745321,1768356953557,-2214.87258,0.00011063,2]
[401745322,1768356953585,-445.51603595,0.00011125,2]
[401745323,1768356953614,-160.704526,0.00011187,2]
[401745324,1768356953641,-250.0,0.00011734,2]
[401745325,1768356953669,-300.0,0.00011748,2]
[401745326,1768356953696,-1200.0,0.00011748,2]
[401745327,1768356953723,-43.80845867,0.00011749,2]
[401745328,1768356953827,-770.20679876,0.00011749,2]
[401745329,1768356956762,-3252.8049687,0.00011749,2]
[401745330,1768356956794,-3494.4000626,0.00011979,2]
[401745331,1768356957006,-10000.01,0.00011979,2]
[401745332,1768356957124,-10000.01,0.00011979,2]
[401745333,1768356962821,-10000.01,0.00011979,2]
[401745336,1768357013585,167.77,6.756e-05,2]
[401745337,1768357013985,209.71,7.037e-05,2]
[401745338,1768357014393,251.65,7.319e-05,2]
[401745339,1768357014781,293.59,7.6e-05,2]
[401745340,1768357015188,335.54,7.881e-05,2]
[401745341,1768357015595,377.48,8.163e-05,2]
[401745342,1768357016022,419.42,8.444e-05,2]
[401745343,1768357055306,2000.0,0.00030137,120]
[401745344,1768357061627,1351.61476276,9.5e-05,2]
[401745346,1768357131943,-300.0,0.00011747,2]
[401745347,1768357131971,-2421.98538024,0.00011748,2]
[401745348,1768357132105,-1149.26447676,0.00011748,2]
[401745349,1768357140474,-4300.20262877,0.00011748,2]
[401745350,1768357140500,-605.49634506,0.00011749,2]
[401745351,1768357143079,188.61205234,0.00011878,2]
[401745352,1768357146563,-111.38794766,0.00011878,2]
[401745353,1768357203097,200.0,8.06e-05,2]
[401745354,1768357227917,263.9991174,8.212e-05,2]
[401745357,1768357292994,-18266.97366051,0.00025,30]
[401745358,1768357293014,-1041.66666667,0.00025,30]
[401745359,1768357409683,-4188.6232576,0.00011231,2]
[401745360,1768357409732,-970.15231506,0.00011231,2]
[401745361,1768357415634,-652.61116974,0.00011231,2]
[401745362,1768357415661,-3029.55559719,0.00011549,2]
[401745363,1768357415690,-740.40095286,0.00011743,2]
[401745364,1768357415746,-1154.87456042,0.00011743,2]
[401745365,1768357421728,-1803.7676472,0.00011743,2]
[401745366,1768357424912,-500.0,0.00011747,2]
[401745367,1768357424944,-500.0,0.00011747,2]
[401745368,1768357424971,-500.0,0.00011747,2]
[401745369,1768357424999,-166.36213689,0.00011747,2]
[401745370,1768357425027,-500.0,0.00011747,2]
[401745371,1768357425053,-500.0,0.00011747,2]
[401745372,1768357425080,-500.0,0.00011747,2]
[401745373,1768357425107,-500.0,0.00011747,2]
[401745374,1768357425135,-500.0,0.00011747,2]
[401745375,1768357425162,-500.0,0.00011747,2]
[401745376,1768357425189,-278.42952474,0.00011747,2]
[401745377,1768357425473,-110.42667674,0.00011747,2]
[401745378,1768357425501,-500.0,0.00011747,2]
[401745379,1768357425531,-500.0,0.00011747,2]
[401745380,1768357425558,-500.0,0.00011747,2]
[401745381,1768357425586,-500.0,0.00011747,2]
[401745382,1768357425613,-209.87291127,0.00011747,2]
[401745383,1768357425641,-1200.0,0.00011747,2]
[401745384,1768357425667,-803.71564557,0.00011748,2]
[401745385,1768357425747,-3214.86258228,0.00011748,2]
[401745386,1768357425937,-1462.40620958,0.00011748,2]
[401745387,1768357425950,-3570.28483544,0.00011748,2]
[401745388,1768357427880,-2200.74976511,0.00011748,2]
[401745389,1768357427909,-585.0,0.00011748,2]
[401745390,1768357427937,-500.0,0.00011778,2]
[401745391,1768357427965,-211.40647043,0.00011778,2]
[401745392,1768357427995,-500.0,0.00011778,2]
[401745393,1768357428024,-500.0,0.00011778,2]
[401745394,1768357428054,-500.0,0.00011778,2]
[401745395,1768357428145,-500.0,0.00011778,2]
[401745396,1768357428174,-500.0,0.00011778,2]
[401745397,1768357428201,-500.0,0.00011778,2]
[401745398,1768357428230,-500.0,0.00011778,2]
[401745399,1768357428262,-271.25831837,0.00011778,2]
[401745400,1768357428292,-500.0,0.00011778,2]
[401745401,1768357428321,-500.0,0.00011778,2]
[401745402,1768357428350,-500.0,0.00011778,2]
[401745403,1768357428379,-500.0,0.00011778,2]
[401745404,1768357428408,-500.0,0.00011778,2]
[401745405,1768357428641,-5.69752892,0.00011778,2]
[401745406,1768357428654,-457.49336326,0.00011778,2]
[401745407,1768357431282,-36.80910782,0.00011778,2]
[401745408,1768357431315,-300.0,0.00011778,2]
[401745409,1768357442380,300.0,0.00011778,2]
[401745410,1768357464988,153.06167889,0.00011771,2]
[401745411,1768357473844,1349.7741279,0.00011743,2]
[401745412,1768357477275,5399.09651161,0.00011743,2]
[401745413,1768357493265,500.0,0.00011778,2]
[401745414,1768357497204,347.75896611,0.00011778,2]
[401745415,1768357502678,300.0,0.00011778,2]
[401745416,1768357503363,1200.0,0.00011778,2]
[401745418,1768357517318,450.31871549,0.00011779,2]
[401745419,1768357517341,10000.01,0.00011779,2]
[401745420,1768357517363,7864.48099232,0.00011779,2]
[401745424,1768357565408,-402.24103389,0.00011778,2]
[401745425,1768357565444,-300.0,0.00011778,2]
[401745428,1768357593871,495.07953048,0.00011743,2]
[401745429,1768357596632,1978.33780381,0.00011743,2]
[401745434,1768357622929,300.0,0.00011778,2]
[401745436,1768357642759,250.0,0.00010809,2]
[401745439,1768357682482,300.0,0.00011778,2]
[401745442,1768357706309,392.859852,0.0001,7]
[401745445,1768357717821,2704.03677102,0.0001,2]
[401745447,1768357722762,170.43404187,0.0002876,120]
[401745448,1768357722926,509.67312535,0.00030136,120]
[401745449,1768357726158,500.0,0.00011771,2]
[401745450,1768357727467,500.0,0.00011771,2]
[401745451,1768357727683,424.0,0.00011771,2]
[401745452,1768357729552,500.0,0.00011771,2]
[401745453,1768357742360,251.21397491,0.00011778,2]
[401745454,1768357742385,48.78602509,0.00011778,2]
[401745460,1768357802154,300.0,0.00011778,2]
[401745462,1768357809973,250.0,0.00011779,2]
[401745463,1768357810031,461.67526834,0.00011779,2]
[401745464,1768357810579,250.0,0.00011779,2]
[401745465,1768357811583,-2229.54978203,0.00011779,2]
[401745466,1768357811733,-10000.01,0.00011779,2]
[401745467,1768357811747,-10000.01,0.00011779,2]
[401745468,1768357811806,250.0,0.00011779,2]
[401745469,1768357813854,-250.0,0.00011779,2]
[401745470,1768357813882,-250.0,0.00011779,2]
[401745471,1768357813909,-168.3888056,0.00011779,2]
[401745472,1768357813936,-250.0,0.00011779,2]
[401745473,1768357813964,-174.61919141,0.00011779,2]
[401745474,1768357814113,-7563.99400598,0.00011779,2]
[401745475,1768357814155,-10000.01,0.00011779,2]
[401745476,1768357814206,-10000.01,0.00011779,2]
[401745477,1768357814278,-10000.01,0.00011779,2]
[401745478,1768357823258,-515.0,0.00011778,2]
[401745479,1768357823287,-181.08010149,0.00011779,2]
[401745480,1768357823315,-255.45232763,0.00011779,2]
[401745481,1768357823347,-187.78006525,0.00011779,2]
[401745482,1768357823379,-2230.315306,0.00011779,2]
[401745483,1768357823411,-151.0,0.00011779,2]
[401745484,1768357823439,-958.75439926,0.00011779,2]
[401745485,1768357823556,-1041.24560074,0.00011779,2]
[401745486,1768357826201,-194.72792766,0.00011779,2]
[401745487,1768357826227,-151.0,0.00011779,2]
[401745488,1768357826256,-2000.0,0.00011779,2]
[401745489,1768357826284,-201.93286099,0.00011779,2]
[401745490,1768357826310,-151.0,0.00011779,2]
[401745491,1768357826343,-2000.0,0.00011779,2]
[401745492,1768357826369,-151.0,0.00011779,2]
[401745493,1768357826396,-91.28404586,0.00011779,2]
[401745494,1768357826518,-118.12033098,0.00011779,2]
[401745495,1768357829375,-500.0,0.00011778,2]
[401745496,1768357829406,-500.0,0.00011778,2]
[401745497,1768357829437,-500.0,0.00011778,2]
[401745498,1768357829466,-632.22394604,0.00011778,2]
[401745499,1768357829494,-230.44878536,0.00011779,2]
[401745500,1768357829522,-151.0,0.00011779,2]
[401745501,1768357829550,-217.15233878,0.00011779,2]
[401745502,1768357829577,-151.0,0.00011779,2]
[401745503,1768357829607,-225.18697532,0.00011779,2]
[401745504,1768357829758,-154.24385772,0.00011779,2]
[401745505,1768357829786,-233.51889341,0.00011779,2]
[401745506,1768357829812,-242.15909246,0.00011779,2]
[401745507,1768357829839,-251.11897888,0.00011779,2]
[401745508,1768357829865,-151.0,0.00011779,2]
[401745509,1768357829892,-260.4103811,0.00011779,2]
[401745510,1768357829919,-151.0,0.00011779,2]
[401745511,1768357829946,-270.0455652,0.00011779,2]
[401745512,1768357829973,-151.0,0.00011779,2]
[401745513,1768357830239,-56.99237146,0.00011779,2]
[401745557,1768357832055,-223.04487966,0.00011779,2]
[401745558,1768357832064,-151.0,0.00011779,2]
[401745559,1768357832073,-394.83860352,0.00011779,2]
[401745560,1768357832083,-151.0,0.00011779,2]
[401745561,1768357832092,-151.0,0.00011779,2]
[401745562,1768357832101,-151.0,0.00011779,2]
[401745563,1768357832110,-1957.856,0.00011779,2]
[401745564,1768357832119,-151.0,0.00011779,2]
[401745565,1768357832127,-225.44700967,0.00011779,2]
[401745566,1768357832136,-20944.70370936,0.00011779,2]
[401745567,1768357832147,-47415.0980187,0.00011779,2]
[401745568,1768357832317,-10000.01,0.00011779,2]
[401745569,1768357834168,-10000.01,0.00011779,2]
[401745584,1768357838014,-829.03730397,0.00011779,2]
[401745585,1768357838026,-415.36916342,0.00011779,2]
[401745586,1768357838038,-954.50930635,0.00011779,2]
[401745587,1768357838067,-832.12920319,0.00011779,2]
[401745588,1768357838080,-1194.248208,0.00011779,2]
[401745589,1768357838095,-291.300155,0.00011779,2]
[401745590,1768357838108,-4042.88965632,0.00011779,2]
[401745603,1768357840182,-1197.39385906,0.00011779,2]
[401746146,1768357845413,-71120.27893562,0.00011779,2]
[401746211,1768357845955,-29188.52865537,0.00011779,2]
[401746219,1768357846016,-513.28061362,0.00011779,2]
[401747832,1768357862469,300.0,0.00011778,2]
[401748143,1768357878889,1008.0,0.00011779,2]
[401748144,1768357881754,161.97,8.248e-05,2]
[401748145,1768357882725,300.0,0.00010946,2]
[401748146,1768357896370,377.40015236,0.00011552,2]
[401748147,1768357899904,1508.09100882,0.00011552,2]
[401748148,1768357923110,300.0,0.00011778,2]
[401748149,1768357935537,500.0,0.00030136,120]
[401748150,1768357935810,500.0,0.00030136,120]
[401748151,1768357936047,500.0,0.00030136,120]
[401748152,1768357936308,500.0,0.00030136,120]
[401748153,1768357936515,500.0,0.00030136,120]
[401748154,1768357936761,500.0,0.00030136,120]
[401748155,1768357936985,500.0,0.00030136,120]
[401748156,1768357937233,500.0,0.00030136,120]
[401748157,1768357937482,500.0,0.00030136,120]
[401748158,1768357937705,500.0,0.00030136,120]
[401748159,1768357937942,500.0,0.00030136,120]
[401748160,1768357938197,500.0,0.00030136,120]
[401748161,1768357938442,317.73883382,0.00030136,120]
[401748162,1768357943235,3029.55559719,0.00011718,2]
[401748163,1768357948287,300.613652,0.00010916,2]
[401748164,1768357972630,1602.73,0.00030137,120]
[401748165,1768357982608,300.0,0.00011778,2]
[401748166,1768357982732,300.0,0.00011778,2]
[401748167,1768358066183,2114.37958963,0.0001174,2]
[401748168,1768358066205,2117.43858221,0.0001174,2]
[401748169,1768358076819,430.558357,0.00011189,2]
[401748170,1768358081862,75.38145102,0.00024402,94]
[401748171,1768358081884,185.36863683,0.00024402,94]
[401748172,1768358081906,73.73904636,0.00024402,94]
[401748173,1768358082549,111.62959047,0.00024539,102]
[401748174,1768358082573,185.36863683,0.00024539,102]
[401748175,1768358096519,774.996715,0.00010959,2]
[401748176,1768358101359,300.0,0.00011778,2]
[401748177,1768358102243,300.0,0.00011778,2]
[401748178,1768358103773,1200.0,0.00011778,2]
[401748180,1768358107804,222.59238667,0.00011779,2]
[401748181,1768358113383,461.67526834,0.00011779,2]
[401748182,1768358113781,1957.856,0.00011779,2]
[401748183,1768358129811,2230.315306,0.00011779,2]
[401748184,1768358162499,4.57738478,0.00011778,2]
[401748185,1768358162523,295.42261522,0.00011778,2]
[401748186,1768358190608,184.54813478,0.00023957,120]
[401748187,1768358191628,999.0,0.00010959,2]
[401748188,1768358196600,1300.189716,0.00011189,2]
[401748189,1768358199066,287.48127816,0.00011449,2]
[401748190,1768358202378,1149.92511265,0.00011449,2]
[401748191,1768358206204,2587.33150345,0.00011449,2]
[401748192,1768358209503,3380.65977452,0.00011289,2]
[401748193,1768358209525,604.50346407,0.00011289,2]
[401748194,1768358211048,167.34191996,0.00011679,2]
[401748195,1768358213732,4599.70045058,0.00011449,2]
[401748196,1768358217664,4628.46416539,0.00011449,2]
[401748197,1768358217687,2551.38075669,0.00011449,2]
[401748198,1768358222670,300.0,0.00011778,2]
[401748199,1768358282133,155.83058135,0.00011743,2]
[401748200,1768358282752,300.0,0.00011778,2]
[401748201,1768358284586,238.95,8.238e-05,2]
[401748202,1768358284856,238.95,8.238e-05,2]
[401748203,1768358285174,238.95,8.238e-05,2]
[401748204,1768358319240,3341.1229061,0.00010951,2]
[401748205,1768358342337,300.0,0.00011778,2]
[401748206,1768358358771,581.0,0.00028767,120]
[401748207,1768358358968,581.0,0.00028904,120]
[401748208,1768358359110,581.0,0.00029041,120]
[401748209,1768358359267,581.0,0.00029178,120]
[401748210,1768358359437,581.0,0.00029315,120]
[401748211,1768358359600,581.0,0.00029452,120]
[401748212,1768358359808,581.0,0.00029589,120]